[Event "Titled Tuesday Blitz May 2 Early 2023"]
[White "Rakotomaharo, Fy Antenaina"]
[Black "Paravyan, David"]
[WhiteFideId "13100050"]
[BlackFideId "4194985"]
[WhiteElo "2427"]
[BlackElo "2563"]
[Result "0-1"]
[Round "11"]
[TimeControl "180+2"]
[Date "2023.05.03"]
[WhiteClock "0:00:00"]
[BlackClock "0:00:01"]

1. e4 {[%clk 0:00:01]}  e5 {[%clk 0:00:01]} 2. Nf3 {[%clk 0:00:01]}  Nf6 {[%clk 0:00:01]} 3. Nxe5 {[%clk 0:00:01]}  d6 {[%clk 0:00:01]} 4. Nf3 {[%clk 0:00:01]}  Nxe4 {[%clk 0:00:01]} 5. Bd3 {[%clk 0:00:01]}  Nf6 {[%clk 0:00:01]} 6. O-O {[%clk 0:00:01]}  Be7 {[%clk 0:00:01]} 7. Re1 {[%clk 0:00:01]}  O-O {[%clk 0:00:01]} 8. h3 {[%clk 0:00:01]}  d5 {[%clk 0:00:01]} 9. c3 {[%clk 0:00:01]}  Bd6 {[%clk 0:00:01]} 10. Bc2 {[%clk 0:00:01]}  Re8 {[%clk 0:00:01]} 11. Rxe8+ {[%clk 0:00:01]}  Qxe8 {[%clk 0:00:01]} 12. d4 {[%clk 0:00:01]}  h6 {[%clk 0:00:01]} 13. Be3 {[%clk 0:00:01]}  Nbd7 {[%clk 0:00:01]} 14. Nbd2 {[%clk 0:00:01]}  Nf8 {[%clk 0:00:01]} 15. a4 {[%clk 0:00:01]}  a5 {[%clk 0:00:01]} 16. Bd3 {[%clk 0:00:01]}  Ng6 {[%clk 0:00:01]} 17. Qc2 {[%clk 0:00:01]}  Nf4 {[%clk 0:00:01]} 18. Bxf4 {[%clk 0:00:01]}  Bxf4 {[%clk 0:00:01]} 19. Re1 {[%clk 0:00:01]}  Be6 {[%clk 0:00:01]} 20. Ne5 {[%clk 0:00:01]}  Nd7 {[%clk 0:00:01]} 21. Ndf3 {[%clk 0:00:01]}  Bxe5 {[%clk 0:00:01]} 22. Nxe5 {[%clk 0:00:01]}  Nxe5 {[%clk 0:00:01]} 23. Rxe5 {[%clk 0:00:01]}  Qd7 {[%clk 0:00:01]} 24. Qe2 {[%clk 0:00:00]}  Re8 {[%clk 0:00:01]} 25. Bb5 {[%clk 0:00:00]}  c6 {[%clk 0:00:01]} 26. Bd3 {[%clk 0:00:00]}  f6 {[%clk 0:00:01]} 27. Re3 {[%clk 0:00:00]}  Bf7 {[%clk 0:00:01]} 28. h4 {[%clk 0:00:00]}  Kf8 {[%clk 0:00:01]} 29. g3 {[%clk 0:00:00]}  Qd6 {[%clk 0:00:01]} 30. Bc2 {[%clk 0:00:00]}  Rxe3 {[%clk 0:00:01]} 31. Qxe3 {[%clk 0:00:00]}  Qe7 {[%clk 0:00:01]} 32. Qf4 {[%clk 0:00:00]}  g5 {[%clk 0:00:01]} 33. hxg5 {[%clk 0:00:00]}  hxg5 {[%clk 0:00:01]} 34. Qb8+ {[%clk 0:00:00]}  Kg7 {[%clk 0:00:01]} 35. Bf5 {[%clk 0:00:00]}  Bg6 {[%clk 0:00:01]} 36. Bxg6 {[%clk 0:00:00]}  Kxg6 {[%clk 0:00:01]} 37. Qg8+ {[%clk 0:00:00]}  Kh6 {[%clk 0:00:01]} 38. Qh8+ {[%clk 0:00:00]}  Kg6 {[%clk 0:00:01]} 39. Qg8+ {[%clk 0:00:00]}  Kf5 {[%clk 0:00:01]} 40. Kf1 {[%clk 0:00:00]}  Kg4 {[%clk 0:00:01]} 41. Qc8+ {[%clk 0:00:00]}  f5 {[%clk 0:00:01]} 42. Kg1 {[%clk 0:00:00]}  Qe1+ {[%clk 0:00:01]} 43. Kg2 {[%clk 0:00:00]}  Qe4+ {[%clk 0:00:01]} 44. Kg1 {[%clk 0:00:00]}  Kf3 {[%clk 0:00:01]} 45. Kh2 {[%clk 0:00:00]}  Kxf2 {[%clk 0:00:01]} 0-1


[Site "https://www.chess.com"]

[Event "Titled Tuesday Blitz May 2 Early 2023"]
[White "Bluebaum, Matthias"]
[Black "Suleymanli, Aydin"]
[WhiteFideId "24651516"]
[BlackFideId "13413937"]
[WhiteElo "2638"]
[BlackElo "2559"]
[Result "1-0"]
[Round "11"]
[TimeControl "180+2"]
[Date "2023.05.03"]
[WhiteClock "0:00:00"]
[BlackClock "0:00:00"]

1. d4 {[%clk 0:00:01]}  Nf6 {[%clk 0:00:01]} 2. c4 {[%clk 0:00:01]}  e6 {[%clk 0:00:01]} 3. Nc3 {[%clk 0:00:01]}  Bb4 {[%clk 0:00:01]} 4. e3 {[%clk 0:00:01]}  O-O {[%clk 0:00:01]} 5. Bd2 {[%clk 0:00:01]}  b6 {[%clk 0:00:01]} 6. Nf3 {[%clk 0:00:01]}  Bb7 {[%clk 0:00:01]} 7. Bd3 {[%clk 0:00:01]}  Qe7 {[%clk 0:00:01]} 8. Qc2 {[%clk 0:00:01]}  d6 {[%clk 0:00:01]} 9. e4 {[%clk 0:00:01]}  e5 {[%clk 0:00:01]} 10. d5 {[%clk 0:00:01]}  a5 {[%clk 0:00:01]} 11. O-O {[%clk 0:00:01]}  Nbd7 {[%clk 0:00:01]} 12. Bg5 {[%clk 0:00:01]}  h6 {[%clk 0:00:01]} 13. Bh4 {[%clk 0:00:01]}  g5 {[%clk 0:00:01]} 14. Nxg5 {[%clk 0:00:01]}  Bxc3 {[%clk 0:00:01]} 15. Qxc3 {[%clk 0:00:01]}  Nxe4 {[%clk 0:00:00]} 16. Nxe4 {[%clk 0:00:00]}  Qxh4 {[%clk 0:00:00]} 17. Ng3 {[%clk 0:00:00]}  Qg5 {[%clk 0:00:00]} 18. Nf5 {[%clk 0:00:00]}  Nc5 {[%clk 0:00:00]} 19. f4 {[%clk 0:00:00]}  Qf6 {[%clk 0:00:00]} 20. Bc2 {[%clk 0:00:00]}  Rae8 {[%clk 0:00:00]} 21. Rae1 {[%clk 0:00:00]}  Bc8 {[%clk 0:00:00]} 22. fxe5 {[%clk 0:00:00]}  Rxe5 {[%clk 0:00:00]} 23. Nxd6 {[%clk 0:00:00]}  Qxf1+ {[%clk 0:00:00]} 24. Kxf1 {[%clk 0:00:00]}  cxd6 {[%clk 0:00:00]} 25. Rxe5 {[%clk 0:00:00]}  dxe5 {[%clk 0:00:00]} 26. Qxe5 {[%clk 0:00:00]}  Bd7 {[%clk 0:00:00]} 27. a3 {[%clk 0:00:00]}  a4 {[%clk 0:00:00]} 28. Qd6 {[%clk 0:00:00]}  Rc8 {[%clk 0:00:00]} 29. Qxh6 {[%clk 0:00:00]} 1-0


[Site "https://www.chess.com"]

[Event "Titled Tuesday Blitz May 2 Early 2023"]
[White "Maghsoodloo, Parham"]
[Black "Bacrot, Etienne"]
[WhiteFideId "12539929"]
[BlackFideId "605506"]
[WhiteElo "2647"]
[BlackElo "2663"]
[Result "1-0"]
[Round "11"]
[TimeControl "180+2"]
[Date "2023.05.03"]
[WhiteClock "0:00:01"]
[BlackClock "0:00:00"]

1. d4 {[%clk 0:00:01]}  Nf6 {[%clk 0:00:01]} 2. Nf3 {[%clk 0:00:01]}  e6 {[%clk 0:00:01]} 3. Bf4 {[%clk 0:00:01]}  h6 {[%clk 0:00:01]} 4. h3 {[%clk 0:00:01]}  g5 {[%clk 0:00:01]} 5. Bh2 {[%clk 0:00:01]}  Bg7 {[%clk 0:00:01]} 6. Nbd2 {[%clk 0:00:01]}  d6 {[%clk 0:00:01]} 7. e4 {[%clk 0:00:01]}  Nc6 {[%clk 0:00:01]} 8. a4 {[%clk 0:00:01]}  Qe7 {[%clk 0:00:01]} 9. c3 {[%clk 0:00:01]}  Bd7 {[%clk 0:00:01]} 10. a5 {[%clk 0:00:01]}  e5 {[%clk 0:00:01]} 11. dxe5 {[%clk 0:00:01]}  Nxe5 {[%clk 0:00:01]} 12. Nxe5 {[%clk 0:00:01]}  dxe5 {[%clk 0:00:01]} 13. a6 {[%clk 0:00:01]}  b6 {[%clk 0:00:01]} 14. Bc4 {[%clk 0:00:01]}  Bc6 {[%clk 0:00:01]} 15. Qe2 {[%clk 0:00:01]}  O-O {[%clk 0:00:01]} 16. O-O {[%clk 0:00:01]}  Rad8 {[%clk 0:00:01]} 17. Rfe1 {[%clk 0:00:01]}  Ne8 {[%clk 0:00:01]} 18. Nf1 {[%clk 0:00:01]}  Nd6 {[%clk 0:00:01]} 19. Bd3 {[%clk 0:00:01]}  f5 {[%clk 0:00:00]} 20. exf5 {[%clk 0:00:01]}  Nxf5 {[%clk 0:00:00]} 21. Bxf5 {[%clk 0:00:01]}  Rxf5 {[%clk 0:00:00]} 22. Ne3 {[%clk 0:00:01]}  Rf7 {[%clk 0:00:00]} 23. Qc4 {[%clk 0:00:01]}  Ba8 {[%clk 0:00:00]} 24. Nf5 {[%clk 0:00:01]}  Qf6 {[%clk 0:00:00]} 25. Rxe5 {[%clk 0:00:01]}  Kh7 {[%clk 0:00:00]} 26. Bg3 {[%clk 0:00:01]}  Rfd7 {[%clk 0:00:00]} 27. Rae1 {[%clk 0:00:01]}  Rd1 {[%clk 0:00:00]} 28. Rxd1 {[%clk 0:00:01]}  Rxd1+ {[%clk 0:00:00]} 29. Kh2 {[%clk 0:00:01]}  Qxe5 {[%clk 0:00:00]} 30. Bxe5 {[%clk 0:00:01]}  Bxe5+ {[%clk 0:00:00]} 31. Ng3 {[%clk 0:00:01]}  Bxg3+ {[%clk 0:00:00]} 32. Kxg3 {[%clk 0:00:01]}  Rd7 {[%clk 0:00:00]} 33. Qe6 {[%clk 0:00:01]}  Rg7 {[%clk 0:00:00]} 34. b4 {[%clk 0:00:01]}  h5 {[%clk 0:00:00]} 35. b5 {[%clk 0:00:01]}  h4+ {[%clk 0:00:00]} 36. Kh2 {[%clk 0:00:01]} 1-0


[Site "https://www.chess.com"]

[Event "Titled Tuesday Blitz May 2 Early 2023"]
[White "Kramnik, Vladimir"]
[Black "Remizov, Yaroslav"]
[WhiteFideId "4101588"]
[BlackFideId "34134015"]
[WhiteElo "2712"]
[BlackElo "2412"]
[Result "0-1"]
[Round "11"]
[TimeControl "180+2"]
[Date "2023.05.03"]
[WhiteClock "0:00:00"]
[BlackClock "0:00:00"]

1. e4 {[%clk 0:00:01]}  c6 {[%clk 0:00:01]} 2. d4 {[%clk 0:00:01]}  d5 {[%clk 0:00:01]} 3. Nd2 {[%clk 0:00:01]}  dxe4 {[%clk 0:00:01]} 4. Nxe4 {[%clk 0:00:01]}  Nf6 {[%clk 0:00:01]} 5. Nxf6+ {[%clk 0:00:01]}  exf6 {[%clk 0:00:01]} 6. c3 {[%clk 0:00:01]}  Bd6 {[%clk 0:00:01]} 7. Bd3 {[%clk 0:00:01]}  O-O {[%clk 0:00:01]} 8. Ne2 {[%clk 0:00:01]}  Re8 {[%clk 0:00:01]} 9. O-O {[%clk 0:00:01]}  Nd7 {[%clk 0:00:01]} 10. Ng3 {[%clk 0:00:01]}  Nf8 {[%clk 0:00:01]} 11. a4 {[%clk 0:00:01]}  a5 {[%clk 0:00:01]} 12. f4 {[%clk 0:00:01]}  c5 {[%clk 0:00:01]} 13. d5 {[%clk 0:00:01]}  Qc7 {[%clk 0:00:01]} 14. c4 {[%clk 0:00:01]}  Ng6 {[%clk 0:00:01]} 15. Qh5 {[%clk 0:00:01]}  Bd7 {[%clk 0:00:01]} 16. Bd2 {[%clk 0:00:01]}  Re7 {[%clk 0:00:01]} 17. Nf5 {[%clk 0:00:01]}  Bxf5 {[%clk 0:00:01]} 18. Qxf5 {[%clk 0:00:01]}  Rae8 {[%clk 0:00:01]} 19. g3 {[%clk 0:00:01]}  Qb6 {[%clk 0:00:00]} 20. Bc3 {[%clk 0:00:01]}  Nf8 {[%clk 0:00:00]} 21. Qg4 {[%clk 0:00:01]}  Re3 {[%clk 0:00:00]} 22. Rf3 {[%clk 0:00:01]}  Bc7 {[%clk 0:00:00]} 23. Kf2 {[%clk 0:00:01]}  R3e7 {[%clk 0:00:00]} 24. h4 {[%clk 0:00:01]}  g6 {[%clk 0:00:00]} 25. h5 {[%clk 0:00:01]}  f5 {[%clk 0:00:00]} 26. Qg5 {[%clk 0:00:01]}  Bd8 {[%clk 0:00:00]} 27. Qh6 {[%clk 0:00:00]}  f6 {[%clk 0:00:00]} 28. Rh1 {[%clk 0:00:00]}  Rg7 {[%clk 0:00:00]} 29. hxg6 {[%clk 0:00:00]}  hxg6 {[%clk 0:00:00]} 30. Qh8+ {[%clk 0:00:00]}  Kf7 {[%clk 0:00:00]} 31. Re3 {[%clk 0:00:00]}  Rxe3 {[%clk 0:00:00]} 32. Kxe3 {[%clk 0:00:00]}  Qd6 {[%clk 0:00:00]} 33. Kd2 {[%clk 0:00:00]}  Qd7 {[%clk 0:00:00]} 34. b3 {[%clk 0:00:00]}  Qd6 {[%clk 0:00:00]} 35. Qh2 {[%clk 0:00:00]}  Rh7 {[%clk 0:00:00]} 36. Qxh7+ {[%clk 0:00:00]}  Nxh7 {[%clk 0:00:00]} 37. Rxh7+ {[%clk 0:00:00]}  Kg8 {[%clk 0:00:00]} 38. Rxb7 {[%clk 0:00:00]}  g5 {[%clk 0:00:00]} 39. Bxf5 {[%clk 0:00:00]}  gxf4 {[%clk 0:00:00]} 40. Rd7 {[%clk 0:00:00]}  Qb8 {[%clk 0:00:00]} 41. Be6+ {[%clk 0:00:00]}  Kh8 {[%clk 0:00:00]} 42. Ke2 {[%clk 0:00:00]}  fxg3 {[%clk 0:00:00]} 43. Kf3 {[%clk 0:00:00]}  Qxb3 {[%clk 0:00:00]} 44. Rxd8+ {[%clk 0:00:00]}  Kg7 {[%clk 0:00:00]} 45. Rd7+ {[%clk 0:00:00]}  Kg6 {[%clk 0:00:00]} 46. Kg4 {[%clk 0:00:00]}  Qxc4+ {[%clk 0:00:00]} 47. Kh3 {[%clk 0:00:00]}  Qxc3 {[%clk 0:00:00]} 48. Bg4 {[%clk 0:00:00]}  g2+ {[%clk 0:00:00]} 49. Kxg2 {[%clk 0:00:00]}  Qc2+ {[%clk 0:00:00]} 50. Kg3 {[%clk 0:00:00]}  Qb3+ {[%clk 0:00:00]} 51. Bf3 {[%clk 0:00:00]}  Qxa4 {[%clk 0:00:00]} 52. Rc7 {[%clk 0:00:00]}  Qd4 {[%clk 0:00:00]} 53. Rc6 {[%clk 0:00:00]}  a4 {[%clk 0:00:00]} 54. d6 {[%clk 0:00:00]}  a3 {[%clk 0:00:00]} 55. Bg4 {[%clk 0:00:00]}  a2 {[%clk 0:00:00]} 56. Ra6 {[%clk 0:00:00]}  a1=Q {[%clk 0:00:00]} 0-1


[Site "https://www.chess.com"]

[Event "Titled Tuesday Blitz May 2 Early 2023"]
[White "Martinez Alcantara, Jose Eduardo"]
[Black "Molina, Roberto Junio Brito"]
[WhiteFideId "3805662"]
[BlackFideId "2109450"]
[WhiteElo "2711"]
[BlackElo "2376"]
[Result "1-0"]
[Round "11"]
[TimeControl "180+2"]
[Date "2023.05.03"]
[WhiteClock "0:00:00"]
[BlackClock "0:00:00"]

1. e4 {[%clk 0:00:01]}  c6 {[%clk 0:00:01]} 2. d4 {[%clk 0:00:01]}  d5 {[%clk 0:00:01]} 3. e5 {[%clk 0:00:01]}  Bf5 {[%clk 0:00:01]} 4. h3 {[%clk 0:00:01]}  e6 {[%clk 0:00:01]} 5. Nf3 {[%clk 0:00:01]}  Nd7 {[%clk 0:00:01]} 6. c3 {[%clk 0:00:01]}  Ne7 {[%clk 0:00:01]} 7. Bd3 {[%clk 0:00:01]}  Bxd3 {[%clk 0:00:01]} 8. Qxd3 {[%clk 0:00:01]}  c5 {[%clk 0:00:01]} 9. Bg5 {[%clk 0:00:01]}  Qb6 {[%clk 0:00:01]} 10. Nbd2 {[%clk 0:00:01]}  Nc6 {[%clk 0:00:01]} 11. O-O {[%clk 0:00:01]}  h6 {[%clk 0:00:01]} 12. Bh4 {[%clk 0:00:01]}  Rc8 {[%clk 0:00:01]} 13. a3 {[%clk 0:00:01]}  c4 {[%clk 0:00:01]} 14. Qc2 {[%clk 0:00:01]}  Be7 {[%clk 0:00:01]} 15. Rae1 {[%clk 0:00:01]}  Qd8 {[%clk 0:00:01]} 16. Bxe7 {[%clk 0:00:01]}  Qxe7 {[%clk 0:00:01]} 17. Nh2 {[%clk 0:00:01]}  b5 {[%clk 0:00:01]} 18. f4 {[%clk 0:00:01]}  g6 {[%clk 0:00:01]} 19. Rf2 {[%clk 0:00:01]}  h5 {[%clk 0:00:01]} 20. Ndf1 {[%clk 0:00:01]}  Kd8 {[%clk 0:00:01]} 21. g3 {[%clk 0:00:01]}  Kc7 {[%clk 0:00:01]} 22. Ne3 {[%clk 0:00:01]}  Kb7 {[%clk 0:00:01]} 23. Nf3 {[%clk 0:00:01]}  Nb6 {[%clk 0:00:01]} 24. Kg2 {[%clk 0:00:01]}  a5 {[%clk 0:00:01]} 25. g4 {[%clk 0:00:01]}  hxg4 {[%clk 0:00:01]} 26. hxg4 {[%clk 0:00:01]}  Rh6 {[%clk 0:00:01]} 27. Rh1 {[%clk 0:00:01]}  Rxh1 {[%clk 0:00:01]} 28. Kxh1 {[%clk 0:00:01]}  b4 {[%clk 0:00:01]} 29. axb4 {[%clk 0:00:01]}  axb4 {[%clk 0:00:01]} 30. Kg2 {[%clk 0:00:01]}  Ra8 {[%clk 0:00:01]} 31. Qb1 {[%clk 0:00:01]}  Ra5 {[%clk 0:00:01]} 32. f5 {[%clk 0:00:01]}  gxf5 {[%clk 0:00:01]} 33. gxf5 {[%clk 0:00:01]}  Ra8 {[%clk 0:00:00]} 34. f6 {[%clk 0:00:01]}  Qd7 {[%clk 0:00:00]} 35. Kg3 {[%clk 0:00:01]}  Ra5 {[%clk 0:00:00]} 36. Ng5 {[%clk 0:00:01]}  Nd8 {[%clk 0:00:00]} 37. Rh2 {[%clk 0:00:01]}  Rb5 {[%clk 0:00:00]} 38. Qc2 {[%clk 0:00:01]}  bxc3 {[%clk 0:00:00]} 39. bxc3 {[%clk 0:00:01]}  Rb3 {[%clk 0:00:00]} 40. Nd1 {[%clk 0:00:01]}  Na4 {[%clk 0:00:00]} 41. Rh7 {[%clk 0:00:01]}  Kc6 {[%clk 0:00:00]} 42. Rh8 {[%clk 0:00:01]}  Qc7 {[%clk 0:00:00]} 43. Kf4 {[%clk 0:00:01]}  Qa5 {[%clk 0:00:00]} 44. Rh3 {[%clk 0:00:01]}  Nb6 {[%clk 0:00:00]} 45. Re3 {[%clk 0:00:01]}  Qa1 {[%clk 0:00:00]} 46. Kf3 {[%clk 0:00:00]}  Ra3 {[%clk 0:00:00]} 47. Qd2 {[%clk 0:00:00]}  Ra2 {[%clk 0:00:00]} 48. Qe1 {[%clk 0:00:00]}  Qb1 {[%clk 0:00:00]} 49. Kg3 {[%clk 0:00:00]}  Qg6 {[%clk 0:00:00]} 50. Kh4 {[%clk 0:00:00]}  Rh2+ {[%clk 0:00:00]} 51. Nh3 {[%clk 0:00:00]}  Qh6+ {[%clk 0:00:00]} 52. Kg4 {[%clk 0:00:00]}  Qg6+ {[%clk 0:00:00]} 53. Kh4 {[%clk 0:00:00]}  Rg2 {[%clk 0:00:00]} 54. Rg3 {[%clk 0:00:00]}  Qh6+ {[%clk 0:00:00]} 55. Kg4 {[%clk 0:00:00]}  Rd2 {[%clk 0:00:00]} 56. Nf4 {[%clk 0:00:00]}  Rc2 {[%clk 0:00:00]} 57. Ne3 {[%clk 0:00:00]}  Rh2 {[%clk 0:00:00]} 58. Kf3 {[%clk 0:00:00]}  Rh4 {[%clk 0:00:00]} 59. Neg2 {[%clk 0:00:00]} 1-0


[Site "https://www.chess.com"]

[Event "Titled Tuesday Blitz May 2 Early 2023"]
[White "Sarana, Alexey"]
[Black "Tanenbaum, Zachary"]
[WhiteFideId "24133795"]
[BlackFideId "2060850"]
[WhiteElo "2714"]
[BlackElo "2175"]
[Result "1-0"]
[Round "11"]
[TimeControl "180+2"]
[Date "2023.05.03"]
[WhiteClock "0:00:00"]
[BlackClock "0:00:00"]

1. d4 {[%clk 0:00:01]}  d5 {[%clk 0:00:01]} 2. c4 {[%clk 0:00:01]}  dxc4 {[%clk 0:00:01]} 3. Nf3 {[%clk 0:00:01]}  Nf6 {[%clk 0:00:01]} 4. e3 {[%clk 0:00:01]}  Bg4 {[%clk 0:00:01]} 5. Bxc4 {[%clk 0:00:01]}  e6 {[%clk 0:00:01]} 6. Nc3 {[%clk 0:00:01]}  Nc6 {[%clk 0:00:01]} 7. h3 {[%clk 0:00:01]}  Bh5 {[%clk 0:00:01]} 8. O-O {[%clk 0:00:01]}  Bd6 {[%clk 0:00:01]} 9. Re1 {[%clk 0:00:01]}  O-O {[%clk 0:00:01]} 10. g4 {[%clk 0:00:01]}  Bg6 {[%clk 0:00:01]} 11. e4 {[%clk 0:00:01]}  Bb4 {[%clk 0:00:01]} 12. Bg5 {[%clk 0:00:01]}  h6 {[%clk 0:00:01]} 13. Bh4 {[%clk 0:00:01]}  Be7 {[%clk 0:00:01]} 14. Bg3 {[%clk 0:00:01]}  Bb4 {[%clk 0:00:01]} 15. Bh4 {[%clk 0:00:01]}  Be7 {[%clk 0:00:01]} 16. Bg3 {[%clk 0:00:01]}  Bb4 {[%clk 0:00:01]} 17. Qd3 {[%clk 0:00:01]}  Bd6 {[%clk 0:00:00]} 18. Bh4 {[%clk 0:00:01]}  Be7 {[%clk 0:00:00]} 19. Rad1 {[%clk 0:00:00]}  Nd5 {[%clk 0:00:00]} 20. Bxe7 {[%clk 0:00:00]}  Ncxe7 {[%clk 0:00:00]} 21. Qd2 {[%clk 0:00:00]}  Nxc3 {[%clk 0:00:00]} 22. bxc3 {[%clk 0:00:00]}  Qd6 {[%clk 0:00:00]} 23. Ne5 {[%clk 0:00:00]}  c5 {[%clk 0:00:00]} 24. Qf4 {[%clk 0:00:00]}  Rad8 {[%clk 0:00:00]} 25. Bb3 {[%clk 0:00:00]}  cxd4 {[%clk 0:00:00]} 26. cxd4 {[%clk 0:00:00]}  Qb4 {[%clk 0:00:00]} 27. Qe3 {[%clk 0:00:00]}  Rc8 {[%clk 0:00:00]} 28. Rd3 {[%clk 0:00:00]}  Rc7 {[%clk 0:00:00]} 29. f4 {[%clk 0:00:00]}  Nd5 {[%clk 0:00:00]} 30. exd5 {[%clk 0:00:00]}  Bxd3 {[%clk 0:00:00]} 31. Nxd3 {[%clk 0:00:00]}  Qc3 {[%clk 0:00:00]} 32. Rc1 {[%clk 0:00:00]}  Qa5 {[%clk 0:00:00]} 33. Rxc7 {[%clk 0:00:00]}  Qxc7 {[%clk 0:00:00]} 34. dxe6 {[%clk 0:00:00]}  fxe6 {[%clk 0:00:00]} 35. Bxe6+ {[%clk 0:00:00]}  Kh8 {[%clk 0:00:00]} 36. Ne5 {[%clk 0:00:00]}  Re8 {[%clk 0:00:00]} 37. d5 {[%clk 0:00:00]}  Qe7 {[%clk 0:00:00]} 38. Qe4 {[%clk 0:00:00]}  Qf6 {[%clk 0:00:00]} 39. Ng6+ {[%clk 0:00:00]}  Kh7 {[%clk 0:00:00]} 40. Nf8+ {[%clk 0:00:00]} 1-0


[Site "https://www.chess.com"]

[Event "Titled Tuesday Blitz May 2 Early 2023"]
[White "Chigaev, Maksim"]
[Black "Averjanov, Alexey"]
[WhiteFideId "4108116"]
[BlackFideId "14109867"]
[WhiteElo "2547"]
[BlackElo "2399"]
[Result "1-0"]
[Round "11"]
[TimeControl "180+2"]
[Date "2023.05.03"]
[WhiteClock "0:00:00"]
[BlackClock "0:00:00"]

1. d4 {[%clk 0:00:01]}  d5 {[%clk 0:00:01]} 2. Nf3 {[%clk 0:00:01]}  Nf6 {[%clk 0:00:01]} 3. c3 {[%clk 0:00:01]}  e6 {[%clk 0:00:01]} 4. Bf4 {[%clk 0:00:01]}  c5 {[%clk 0:00:01]} 5. e3 {[%clk 0:00:01]}  Bd6 {[%clk 0:00:01]} 6. Bb5+ {[%clk 0:00:01]}  Nc6 {[%clk 0:00:01]} 7. Bxc6+ {[%clk 0:00:01]}  bxc6 {[%clk 0:00:01]} 8. Bxd6 {[%clk 0:00:01]}  Qxd6 {[%clk 0:00:01]} 9. Qa4 {[%clk 0:00:01]}  cxd4 {[%clk 0:00:01]} 10. cxd4 {[%clk 0:00:01]}  O-O {[%clk 0:00:01]} 11. Qa3 {[%clk 0:00:01]}  Qxa3 {[%clk 0:00:01]} 12. Nxa3 {[%clk 0:00:01]}  Ba6 {[%clk 0:00:01]} 13. Ne5 {[%clk 0:00:01]}  Rfc8 {[%clk 0:00:01]} 14. Rc1 {[%clk 0:00:01]}  Rc7 {[%clk 0:00:01]} 15. f3 {[%clk 0:00:01]}  Rac8 {[%clk 0:00:01]} 16. Rc5 {[%clk 0:00:01]}  Kf8 {[%clk 0:00:01]} 17. Kd2 {[%clk 0:00:01]}  Ke7 {[%clk 0:00:01]} 18. Rhc1 {[%clk 0:00:01]}  Kd6 {[%clk 0:00:01]} 19. Ra5 {[%clk 0:00:01]}  Bb7 {[%clk 0:00:01]} 20. Rxa7 {[%clk 0:00:01]}  Ne8 {[%clk 0:00:01]} 21. Nd3 {[%clk 0:00:01]}  Ba8 {[%clk 0:00:01]} 22. Ra6 {[%clk 0:00:01]}  Ke7 {[%clk 0:00:01]} 23. Nc5 {[%clk 0:00:00]}  Nd6 {[%clk 0:00:00]} 24. b3 {[%clk 0:00:00]}  Rb8 {[%clk 0:00:00]} 25. Nc2 {[%clk 0:00:00]}  f6 {[%clk 0:00:00]} 26. Ne1 {[%clk 0:00:00]}  g5 {[%clk 0:00:00]} 27. Ned3 {[%clk 0:00:00]}  h6 {[%clk 0:00:00]} 28. Ra4 {[%clk 0:00:00]}  Nf5 {[%clk 0:00:00]} 29. Na6 {[%clk 0:00:00]}  Rcc8 {[%clk 0:00:00]} 30. Nxb8 {[%clk 0:00:00]}  Rxb8 {[%clk 0:00:00]} 31. Ra7+ {[%clk 0:00:00]}  Kd6 {[%clk 0:00:00]} 32. Nc5 {[%clk 0:00:00]}  Rd8 {[%clk 0:00:00]} 33. b4 {[%clk 0:00:00]}  Nh4 {[%clk 0:00:00]} 34. Rc3 {[%clk 0:00:00]}  Nxg2 {[%clk 0:00:00]} 35. Rca3 {[%clk 0:00:00]}  Nh4 {[%clk 0:00:00]} 36. Rxa8 {[%clk 0:00:00]}  Rxa8 {[%clk 0:00:00]} 37. Rxa8 {[%clk 0:00:00]}  Nxf3+ {[%clk 0:00:00]} 38. Ke2 {[%clk 0:00:00]}  Nxh2 {[%clk 0:00:00]} 39. Ra7 {[%clk 0:00:00]}  e5 {[%clk 0:00:00]} 40. Rd7# {[%clk 0:00:00]} 1-0


[Site "https://www.chess.com"]

[Event "Titled Tuesday Blitz May 2 Early 2023"]
[White "Colas, Joshua"]
[Black "Grigoriants, Sergey"]
[WhiteFideId "2044447"]
[BlackFideId "4130804"]
[WhiteElo "2347"]
[BlackElo "2502"]
[Result "1/2-1/2"]
[Round "11"]
[TimeControl "180+2"]
[Date "2023.05.03"]
[WhiteClock "0:00:00"]
[BlackClock "0:00:00"]

1. Nf3 {[%clk 0:00:01]}  Nf6 {[%clk 0:00:01]} 2. c4 {[%clk 0:00:01]}  g6 {[%clk 0:00:01]} 3. b3 {[%clk 0:00:01]}  Bg7 {[%clk 0:00:01]} 4. Bb2 {[%clk 0:00:01]}  O-O {[%clk 0:00:01]} 5. g3 {[%clk 0:00:01]}  d6 {[%clk 0:00:01]} 6. d4 {[%clk 0:00:01]}  Nc6 {[%clk 0:00:01]} 7. Bg2 {[%clk 0:00:01]}  e5 {[%clk 0:00:01]} 8. dxe5 {[%clk 0:00:01]}  Ng4 {[%clk 0:00:01]} 9. Qd2 {[%clk 0:00:01]}  dxe5 {[%clk 0:00:01]} 10. h3 {[%clk 0:00:01]}  e4 {[%clk 0:00:01]} 11. Qxd8 {[%clk 0:00:01]}  Rxd8 {[%clk 0:00:01]} 12. Bxg7 {[%clk 0:00:01]}  exf3 {[%clk 0:00:01]} 13. Bxf3 {[%clk 0:00:01]}  Nxf2 {[%clk 0:00:00]} 14. Kxf2 {[%clk 0:00:01]}  Kxg7 {[%clk 0:00:00]} 15. Bxc6 {[%clk 0:00:00]}  bxc6 {[%clk 0:00:00]} 16. Nc3 {[%clk 0:00:00]}  Be6 {[%clk 0:00:00]} 17. h4 {[%clk 0:00:00]}  Kf6 {[%clk 0:00:00]} 18. Rhd1 {[%clk 0:00:00]}  Ke5 {[%clk 0:00:00]} 19. Ke3 {[%clk 0:00:00]}  f5 {[%clk 0:00:00]} 20. Rxd8 {[%clk 0:00:00]}  Rxd8 {[%clk 0:00:00]} 21. Rd1 {[%clk 0:00:00]}  Rd6 {[%clk 0:00:00]} 22. Rd3 {[%clk 0:00:00]}  h6 {[%clk 0:00:00]} 23. c5 {[%clk 0:00:00]}  Rd7 {[%clk 0:00:00]} 24. Rxd7 {[%clk 0:00:00]}  Bxd7 {[%clk 0:00:00]} 25. b4 {[%clk 0:00:00]}  g5 {[%clk 0:00:00]} 26. hxg5 {[%clk 0:00:00]}  hxg5 {[%clk 0:00:00]} 27. a4 {[%clk 0:00:00]}  Be8 {[%clk 0:00:00]} 28. Nd1 {[%clk 0:00:00]}  Bg6 {[%clk 0:00:00]} 29. Nf2 {[%clk 0:00:00]}  f4+ {[%clk 0:00:00]} 30. gxf4+ {[%clk 0:00:00]}  gxf4+ {[%clk 0:00:00]} 31. Kd2 {[%clk 0:00:00]}  Kd4 {[%clk 0:00:00]} 32. Nh3 {[%clk 0:00:00]}  Ke5 {[%clk 0:00:00]} 1/2-1/2


[Site "https://www.chess.com"]